[Event "57th Biel Festival MTO 2024"]
[White "Pisan,Kai"]
[Black "Rappazzo,Johannes"]
[Site "Biel"]
[Round "2.50"]
[Annotator "RC"]
[Result "0-1"]
[Date "2024.07.16"]
[WhiteElo "1950"]
[BlackElo "2169"]
[PlyCount "102"]
[TimeControl "60"]

1. d4 {[%emt 0:0:3]} Nf6 {[%emt 0:0:4]} 2. c4 {[%emt 0:0:6]} g6 {[%emt 0:0:3]} 3. g3 {[%emt 0:0:5]} Bg7 {[%emt 0:0:6]} 4. Bg2 {[%emt 0:0:5]} O-O {[%emt 0:0:5]} 5. Nc3 {[%emt 0:0:5]} d6 {[%emt 0:0:5]} 6. Nf3 {[%emt 0:0:7]} c5 {[%emt 0:0:10]} 7. O-O {[%emt 0:0:6]} Nc6 {[%emt 0:0:2]} 8. dxc5 {[%emt 0:0:9]} dxc5 {[%emt 0:0:8]} 9. Be3 {[%emt 0:0:14]} Be6 {[%emt 0:0:28]} 10. Qa4 {[%emt 0:0:12]} Nd4 {[%emt 0:0:55]} 11. Rad1 {[%emt 0:0:12]} Bd7 {[%emt 0:0:41]} 12. Qa3 {[%emt 0:0:21]} Nc2 {[%emt 0:0:38]} 13. Qxc5 {[%emt 0:0:38]} b6 {[%emt 0:0:33]} 14. Qg5 {[%emt 0:0:44]} h6 {[%emt 0:0:24]} 15. Qh4 {[%emt 0:0:34]} Nxe3 {[%emt 0:6:0]} 16. fxe3 {[%emt 0:0:11]} Qe8 {[%emt 0:10:49]} 17. Nd5 {[%emt 0:19:49]} Rc8 {[%emt 0:19:34]} 18. b3 {[%emt 0:7:9]} Nxd5 {[%emt 0:21:58]} 19. Rxd5 {[%emt 0:2:56]} Bc6 {[%emt 0:12:26]} 20. Rd2 {[%emt 0:4:35]} e5 {[%emt 0:6:10]} 21. Rfd1 {[%emt 0:7:14]} g5 {[%emt 0:1:49]} 22. Qh5 {[%emt 0:4:2]} b5 {[%emt 0:3:12]} 23. cxb5 {[%emt 0:18:3]} Be4 {[%emt 0:2:11]} 24. a4 {[%emt 0:9:7]} Rc3 {[%emt 0:3:36]} 25. Ne1 {[%emt 0:10:27]} Bxg2 {[%emt 0:2:19]} 26. Nxg2 {[%emt 0:0:48]} Qe6 {[%emt 0:1:40]} 27. h4 {[%emt 0:6:23]} gxh4 {[%emt 0:5:10]} 28. Qxh4 {[%emt 0:3:34]} Qxb3 {[%emt 0:2:8]} 29. Rd8 {[%emt 0:5:30]} Kh7 {[%emt 0:1:6]} 30. Qg4 {[%emt 0:1:37]} f5 {[%emt 0:2:12]} 31. Qh5 {[%emt 0:1:11]} Rc4 {[%emt 0:4:9]} 32. R1d7 {[%emt 0:2:54]} Qb1+ {[%emt 0:1:14]} 33. Rd1 {[%emt 0:1:1]} Rc1 {[%emt 0:0:14]} 34. Rxc1 {[%emt 0:5:59]} Qxc1+ {[%emt 0:0:6]} 35. Kh2 {[%emt 0:0:4]} Rxd8 {[%emt 0:0:5]} 36. Qxf5+ {[%emt 0:0:8]} Kh8 {[%emt 0:2:21]} 37. Nh4 {[%emt 0:0:16]} Rd6 {[%emt 0:2:1]} 38. g4 {[%emt 0:2:2]} Qc4 {[%emt 0:0:38]} 39. Ng6+ {[%emt 0:0:33]} Rxg6 {[%emt 0:0:3]} 40. Qxg6 {[%emt 0:0:9]} Qxe2+ {[%emt 0:0:9]} 41. Kh1 {[%emt 0:50:14]} Qf3+ {[%emt 0:50:19]} 42. Kh2 {[%emt 0:0:30]} Qxe3 {[%emt 0:0:48]} 43. Qa6 {[%emt 0:0:27]} Qe2+ {[%emt 0:0:36]} 44. Kh3 {[%emt 0:0:9]} Qd3+ {[%emt 0:0:51]} 45. Kg2 {[%emt 0:0:47]} Qc2+ {[%emt 0:0:15]} 46. Kh3 {[%emt 0:0:7]} e4 {[%emt 0:0:19]} 47. Qxa7 {[%emt 0:0:20]} Qd3+ {[%emt 0:0:27]} 48. Kg2 {[%emt 0:0:46]} Qf3+ {[%emt 0:0:0]} 49. Kh2 {[%emt 0:0:0]} Be5+ {[%emt 0:0:0]} 50. Kg1 {[%emt 0:0:0]} e3 {[%emt 0:0:0]} 51. Qa8+ {[%emt 0:0:0]} Qxa8 {[%emt 0:0:0]} 0-1

[Event "57th Biel Festival MTO 2024"]
[White "Frayna,Janelle Mae"]
[Black "Matsumura,Cocoro"]
[Site "Biel"]
[Round "2.51"]
[Annotator "RC"]
[Result "1/2-1/2"]
[Date "2024.07.16"]
[WhiteElo "2164"]
[BlackElo "2032"]
[PlyCount "139"]
[TimeControl "60"]

1. e4 {[%emt 0:0:8]} c5 {[%emt 0:0:5]} 2. Nc3 {[%emt 0:0:8]} e6 {[%emt 0:0:11]} 3. g3 {[%emt 0:0:52]} Nc6 {[%emt 0:0:38]} 4. Bg2 {[%emt 0:0:19]} Nf6 {[%emt 0:0:11]} 5. Nge2 {[%emt 0:0:36]} Be7 {[%emt 0:0:10]} 6. O-O {[%emt 0:0:14]} O-O {[%emt 0:0:10]} 7. d4 {[%emt 0:0:30]} cxd4 {[%emt 0:0:5]} 8. Nxd4 {[%emt 0:0:4]} Qb6 {[%emt 0:3:4]} 9. Ndb5 {[%emt 0:2:35]} a6 {[%emt 0:3:33]} 10. Be3 {[%emt 0:4:24]} Qa5 {[%emt 0:2:54]} 11. Nd6 {[%emt 0:0:47]} Qb4 {[%emt 0:1:53]} 12. Nxc8 {[%emt 0:3:53]} Raxc8 {[%emt 0:0:37]} 13. Rb1 {[%emt 0:3:2]} Ne5 {[%emt 0:9:2]} 14. Bd2 {[%emt 0:11:18]} Qd4 {[%emt 0:21:15]} 15. Bf4 {[%emt 0:3:57]} Qc5 {[%emt 0:2:51]} 16. Qe2 {[%emt 0:6:46]} d6 {[%emt 0:5:24]} 17. a4 {[%emt 0:6:39]} Nc4 {[%emt 0:7:50]} 18. Rfd1 {[%emt 0:11:18]} b5 {[%emt 0:7:34]} 19. axb5 {[%emt 0:9:41]} axb5 {[%emt 0:0:13]} 20. Na2 {[%emt 0:2:31]} Nd7 {[%emt 0:23:13]} 21. c3 {[%emt 0:0:45]} g5 {[%emt 0:4:38]} 22. Bc1 {[%emt 0:1:36]} f5 {[%emt 0:1:56]} 23. Nb4 {[%emt 0:2:39]} fxe4 {[%emt 0:2:9]} 24. Bxe4 {[%emt 0:3:12]} Qe5 {[%emt 0:0:44]} 25. Nd3 {[%emt 0:3:36]} Qf6 {[%emt 0:0:22]} 26. f4 {[%emt 0:1:18]} d5 {[%emt 0:2:33]} 27. fxg5 {[%emt 0:3:25]} Qg7 {[%emt 0:0:11]} 28. Bg2 {[%emt 0:0:4]} Nc5 {[%emt 0:1:23]} 29. Bf4 {[%emt 0:1:56]} Rce8 {[%emt 0:2:54]} 30. b3 {[%emt 0:19:8]} Nxd3 {[%emt 0:1:15]} 31. Rxd3 {[%emt 0:1:19]} Bc5+ {[%emt 0:0:7]} 32. Kh1 {[%emt 0:0:8]} Nb6 {[%emt 0:2:49]} 33. Be3 {[%emt 0:1:40]} Nd7 {[%emt 0:0:8]} 34. Re1 {[%emt 0:1:1]} Qg6 {[%emt 0:1:41]} 35. Bxc5 {[%emt 0:0:32]} Nxc5 {[%emt 0:0:3]} 36. Re3 {[%emt 0:0:2]} b4 {[%emt 0:2:39]} 37. cxb4 {[%emt 0:0:18]} d4 {[%emt 0:0:1]} 38. Re5 {[%emt 0:3:28]} d3 {[%emt 0:0:45]} 39. Qe3 {[%emt 0:0:52]} Nd7 {[%emt 0:2:11]} 40. Ra5 {[%emt 0:0:56]} e5 {[%emt 0:0:36]} 41. Be4 {[%emt 0:51:37]} Qh5 {[%emt 0:2:32]} 42. Rd5 {[%emt 0:0:0]} Qg4 {[%emt 0:2:16]} 43. Rxd3 {[%emt 0:0:0]} Re7 {[%emt 0:2:59]} 44. b5 {[%emt 0:0:0]} Kh8 {[%emt 0:0:12]} 45. Bc6 {[%emt 0:0:0]} Qh3 {[%emt 0:1:34]} 46. Bg2 {[%emt 0:0:0]} Qe6 {[%emt 0:1:3]} 47. b4 {[%emt 0:0:0]} Qc4 {[%emt 0:1:57]} 48. Red1 {[%emt 0:0:0]} Qxb5 {[%emt 0:3:7]} 49. Rd5 {[%emt 0:0:0]} Qa4 {[%emt 0:1:23]} 50. h4 {[%emt 0:0:0]} Ref7 {[%emt 0:5:1]} 51. b5 {[%emt 0:0:0]} Qg4 {[%emt 0:0:6]} 52. Rxd7 {[%emt 0:0:0]} Rxd7 {[%emt 0:0:53]} 53. Rxd7 {[%emt 0:0:0]} Qxd7 {[%emt 0:0:8]} 54. Qxe5+ {[%emt 0:0:0]} Qg7 {[%emt 0:0:9]} 55. Qxg7+ {[%emt 0:0:0]} Kxg7 {[%emt 0:0:2]} 56. b6 {[%emt 0:0:0]} Kg6 {[%emt 0:0:38]} 57. b7 {[%emt 0:0:0]} Kf5 {[%emt 0:1:4]} 58. Bh3+ {[%emt 0:0:0]} Ke4 {[%emt 0:0:11]} 59. Kg2 {[%emt 0:0:0]} Rd8 {[%emt 0:1:7]} 60. Bc8 {[%emt 0:0:0]} Rd2+ {[%emt 0:0:3]} 61. Kh3 {[%emt 0:6:24]} Rb2 {[%emt 0:15:5]} 62. Kg4 {[%emt 0:0:19]} Ke5 {[%emt 0:1:39]} 63. Kh5 {[%emt 0:0:51]} Rb6 {[%emt 0:0:15]} 64. Kg4 {[%emt 0:5:15]} Rb4+ {[%emt 0:0:31]} 65. Kh5 {[%emt 0:0:5]} Rb6 {[%emt 0:0:4]} 66. g4 {[%emt 0:2:50]} Kf4 {[%emt 0:7:15]} 67. Bf5 {[%emt 0:0:3]} Rxb7 {[%emt 0:0:35]} 68. Kh6 {[%emt 0:0:6]} Rc7 {[%emt 0:1:28]} 69. g6 {[%emt 0:11:9]} hxg6 {[%emt 0:0:18]} 70. Kxg6 {[%emt 0:0:2]} 1/2-1/2

[Event "57th Biel Festival MTO 2024"]
[White "Arbinger,Roland"]
[Black "Vincenti,Leonardo"]
[Site "Biel"]
[Round "2.52"]
[Annotator "RC"]
[Result "0-1"]
[Date "2024.07.16"]
[WhiteElo "2013"]
[BlackElo "2166"]
[PlyCount "78"]
[TimeControl "60"]

1. d4 {[%emt 0:0:7]} Nf6 {[%emt 0:0:2]} 2. c4 {[%emt 0:0:21]} e6 {[%emt 0:0:2]} 3. Nf3 {[%emt 0:0:48]} d5 {[%emt 0:0:4]} 4. Bg5 {[%emt 0:1:12]} Be7 {[%emt 0:0:16]} 5. e3 {[%emt 0:0:16]} h6 {[%emt 0:0:8]} 6. Bh4 {[%emt 0:1:0]} O-O {[%emt 0:0:4]} 7. Nc3 {[%emt 0:0:44]} b6 {[%emt 0:0:33]} 8. cxd5 {[%emt 0:0:54]} Nxd5 {[%emt 0:0:3]} 9. Bxe7 {[%emt 0:1:0]} Qxe7 {[%emt 0:0:2]} 10. Bd3 {[%emt 0:1:18]} c5 {[%emt 0:11:55]} 11. O-O {[%emt 0:4:2]} Bb7 {[%emt 0:4:42]} 12. Rc1 {[%emt 0:3:2]} Rd8 {[%emt 0:2:11]} 13. Qe2 {[%emt 0:11:16]} Nb4 {[%emt 0:18:58]} 14. Bc4 {[%emt 0:2:40]} Nd7 {[%emt 0:16:19]} 15. a3 {[%emt 0:4:55]} Nc6 {[%emt 0:1:21]} 16. Rfd1 {[%emt 0:4:41]} cxd4 {[%emt 0:7:3]} 17. exd4 {[%emt 0:1:29]} Nf6 {[%emt 0:1:3]} 18. Ba6 {[%emt 0:2:52]} Rac8 {[%emt 0:3:32]} 19. Rc2 {[%emt 0:8:57]} g6 {[%emt 0:16:49]} 20. h3 {[%emt 0:6:50]} Kg7 {[%emt 0:0:6]} 21. Rcd2 {[%emt 0:0:59]} Na5 {[%emt 0:11:23]} 22. Bxb7 {[%emt 0:7:55]} Qxb7 {[%emt 0:0:2]} 23. Ne5 {[%emt 0:1:58]} Nd5 {[%emt 0:1:33]} 24. Nxd5 {[%emt 0:5:18]} Rxd5 {[%emt 0:0:20]} 25. b4 {[%emt 0:1:4]} Nb3 {[%emt 0:2:58]} 26. Rd3 {[%emt 0:11:21]} Nc1 {[%emt 0:0:24]} 27. Qe4 {[%emt 0:1:54]} Nxd3 {[%emt 0:0:9]} 28. Rxd3 {[%emt 0:0:9]} Rcd8 {[%emt 0:5:21]} 29. Rg3 {[%emt 0:1:56]} R5d7 {[%emt 0:4:13]} 30. Rxg6+ {[%emt 0:5:44]} fxg6 {[%emt 0:1:50]} 31. Qxg6+ {[%emt 0:0:4]} Kf8 {[%emt 0:1:21]} 32. Qf6+ {[%emt 0:1:31]} Kg8 {[%emt 0:0:25]} 33. Qxe6+ {[%emt 0:0:47]} Rf7 {[%emt 0:0:12]} 34. Ng4 {[%emt 0:4:51]} Qe7 {[%emt 0:1:9]} 35. Qg6+ {[%emt 0:3:12]} Rg7 {[%emt 0:0:53]} 36. Nf6+ {[%emt 0:2:5]} Kf8 {[%emt 0:0:1]} 37. Qxh6 {[%emt 0:0:21]} Rxd4 {[%emt 0:1:0]} 38. Nh5 {[%emt 0:1:0]} Rd1+ {[%emt 0:0:26]} 39. Kh2 {[%emt 0:0:8]} Qd6+ {[%emt 0:0:6]} 0-1

[Event "57th Biel Festival MTO 2024"]
[White "Malli,Suvirr"]
[Black "Douguet,Claude"]
[Site "Biel"]
[Round "2.53"]
[Annotator "RC"]
[Result "1-0"]
[Date "2024.07.16"]
[WhiteElo "2147"]
[BlackElo "1994"]
[PlyCount "65"]
[TimeControl "60"]

1. e4 {[%emt 0:0:3]} e5 {[%emt 0:0:6]} 2. Nf3 {[%emt 0:0:8]} Nc6 {[%emt 0:0:5]} 3. Bc4 {[%emt 0:0:10]} Bc5 {[%emt 0:0:45]} 4. d3 {[%emt 0:0:18]} h6 {[%emt 0:1:2]} 5. c3 {[%emt 0:0:19]} Nf6 {[%emt 0:0:14]} 6. O-O {[%emt 0:0:18]} O-O {[%emt 0:0:52]} 7. h3 {[%emt 0:2:10]} a5 {[%emt 0:0:28]} 8. Bb3 {[%emt 0:3:53]} d6 {[%emt 0:5:19]} 9. Re1 {[%emt 0:1:2]} Be6 {[%emt 0:1:52]} 10. Bc2 {[%emt 0:3:37]} Ba7 {[%emt 0:3:1]} 11. Nbd2 {[%emt 0:1:0]} Nh7 {[%emt 0:9:16]} 12. Nf1 {[%emt 0:3:54]} Ng5 {[%emt 0:7:41]} 13. Nxg5 {[%emt 0:1:52]} hxg5 {[%emt 0:3:41]} 14. Be3 {[%emt 0:5:17]} Qf6 {[%emt 0:21:8]} 15. Bxa7 {[%emt 0:4:29]} Rxa7 {[%emt 0:0:32]} 16. Ne3 {[%emt 0:0:23]} g6 {[%emt 0:10:32]} 17. Qd2 {[%emt 0:1:45]} Kg7 {[%emt 0:1:18]} 18. Rad1 {[%emt 0:10:37]} Rh8 {[%emt 0:5:32]} 19. Nd5 {[%emt 0:20:26]} Qd8 {[%emt 0:4:8]} 20. f3 {[%emt 0:12:23]} Rh5 {[%emt 0:8:28]} 21. Ne3 {[%emt 0:2:55]} Qd7 {[%emt 0:8:19]} 22. d4 {[%emt 0:1:45]} Ra8 {[%emt 0:6:1]} 23. d5 {[%emt 0:1:17]} Bxh3 {[%emt 0:0:15]} 24. dxc6 {[%emt 0:0:23]} bxc6 {[%emt 0:0:13]} 25. gxh3 {[%emt 0:1:17]} Qxh3 {[%emt 0:5:38]} 26. Qg2 {[%emt 0:0:38]} Qh4 {[%emt 0:0:28]} 27. Ng4 {[%emt 0:2:35]} Rf8 {[%emt 0:0:38]} 28. Qh2 {[%emt 0:3:1]} f5 {[%emt 0:0:32]} 29. Qxh4 {[%emt 0:0:18]} Rxh4 {[%emt 0:1:20]} 30. exf5 {[%emt 0:0:25]} gxf5 {[%emt 0:2:56]} 31. Ne3 {[%emt 0:0:12]} e4 {[%emt 0:1:35]} 32. fxe4 {[%emt 0:0:9]} f4 {[%emt 0:0:12]} 33. Nf5+ {[%emt 0:0:8]} 1-0

[Event "57th Biel Festival MTO 2024"]
[White "Hornung,Hans"]
[Black "Asllani,Dorian"]
[Site "Biel"]
[Round "2.54"]
[Annotator "RC"]
[Result "0-1"]
[Date "2024.07.16"]
[WhiteElo "2009"]
[BlackElo "2154"]
[PlyCount "118"]
[TimeControl "60"]

1. c4 {[%emt 0:0:6]} e6 {[%emt 0:0:13]} 2. Nc3 {[%emt 0:1:0]} d5 {[%emt 0:0:20]} 3. d4 {[%emt 0:0:7]} Nf6 {[%emt 0:0:16]} 4. Bg5 {[%emt 0:0:24]} Nbd7 {[%emt 0:0:36]} 5. cxd5 {[%emt 0:0:31]} exd5 {[%emt 0:0:9]} 6. e3 {[%emt 0:0:11]} c6 {[%emt 0:0:19]} 7. Bd3 {[%emt 0:0:24]} Be7 {[%emt 0:0:36]} 8. Qc2 {[%emt 0:0:31]} O-O {[%emt 0:0:24]} 9. Nf3 {[%emt 0:0:12]} Re8 {[%emt 0:0:18]} 10. O-O {[%emt 0:0:59]} h6 {[%emt 0:0:18]} 11. Bf4 {[%emt 0:1:0]} Nf8 {[%emt 0:0:29]} 12. h3 {[%emt 0:1:0]} Bd6 {[%emt 0:1:7]} 13. Be5 {[%emt 0:4:44]} Bxe5 {[%emt 0:14:55]} 14. Nxe5 {[%emt 0:1:38]} c5 {[%emt 0:0:48]} 15. Rad1 {[%emt 0:6:42]} cxd4 {[%emt 0:3:5]} 16. exd4 {[%emt 0:0:32]} Ne6 {[%emt 0:0:45]} 17. Qa4 {[%emt 0:6:45]} a6 {[%emt 0:8:13]} 18. Bb1 {[%emt 0:4:31]} h5 {[%emt 0:17:58]} 19. Rfe1 {[%emt 0:7:46]} Qd6 {[%emt 0:2:15]} 20. Re3 {[%emt 0:8:26]} Rb8 {[%emt 0:4:59]} 21. a3 {[%emt 0:1:2]} b5 {[%emt 0:4:30]} 22. Qb4 {[%emt 0:1:2]} Qc7 {[%emt 0:8:16]} 23. Ba2 {[%emt 0:10:46]} Rd8 {[%emt 0:4:52]} 24. Ne2 {[%emt 0:1:19]} Qb6 {[%emt 0:6:55]} 25. Ng3 {[%emt 0:6:13]} a5 {[%emt 0:7:38]} 26. Qd2 {[%emt 0:6:16]} g6 {[%emt 0:3:9]} 27. Rf3 {[%emt 0:1:59]} Kg7 {[%emt 0:0:36]} 28. Nxh5+ {[%emt 0:8:37]} gxh5 {[%emt 0:4:27]} 29. Rg3+ {[%emt 0:2:41]} Kf8 {[%emt 0:7:29]} 30. Qh6+ {[%emt 0:1:14]} Ke7 {[%emt 0:0:1]} 31. Rf3 {[%emt 0:1:10]} Ng8 {[%emt 0:2:12]} 32. Rxf7+ {[%emt 0:3:23]} Kd6 {[%emt 0:0:2]} 33. Qxh5 {[%emt 0:2:54]} Rb7 {[%emt 0:4:28]} 34. Rc1 {[%emt 0:2:43]} Nxd4 {[%emt 0:1:11]} 35. Qg6+ {[%emt 0:4:4]} Be6 {[%emt 0:0:58]} 36. Rxb7 {[%emt 0:3:25]} Qxb7 {[%emt 0:0:21]} 37. Re1 {[%emt 0:1:24]} Rf8 {[%emt 0:1:56]} 38. Qg3 {[%emt 0:2:10]} Nf5 {[%emt 0:0:1]} 39. Qc3 {[%emt 0:3:12]} b4 {[%emt 0:2:8]} 40. Qd2 {[%emt 0:1:35]} Nge7 {[%emt 0:0:46]} 41. Nc4+ {[%emt 0:51:30]} Kd7 {[%emt 0:50:29]} 42. Nxa5 {[%emt 0:0:49]} Qb5 {[%emt 0:0:0]} 43. Nc4 {[%emt 0:0:0]} Nc6 {[%emt 0:0:0]} 44. a4 {[%emt 0:0:0]} Qc5 {[%emt 0:0:0]} 45. Ne3 {[%emt 0:0:0]} Nxe3 {[%emt 0:0:0]} 46. Rxe3 {[%emt 0:0:0]} Rg8 {[%emt 0:0:0]} 47. Bb3 {[%emt 0:0:0]} Ne7 {[%emt 0:0:0]} 48. Rd3 {[%emt 0:0:0]} Rc8 {[%emt 0:0:0]} 49. Kh2 {[%emt 0:0:0]} Qc7+ {[%emt 0:0:0]} 50. g3 {[%emt 0:0:0]} Qd6 {[%emt 0:0:0]} 51. Rd4 {[%emt 0:0:0]} Nc6 {[%emt 0:0:0]} 52. Rh4 {[%emt 0:0:0]} Rf8 {[%emt 0:0:0]} 53. Rh7+ {[%emt 0:0:0]} Kc8 {[%emt 0:0:0]} 54. Qe2 {[%emt 0:0:0]} Nd4 {[%emt 0:0:0]} 55. Qd3 {[%emt 0:0:0]} Rxf2+ {[%emt 0:0:0]} 56. Kg1 {[%emt 0:0:0]} Rf3 {[%emt 0:0:0]} 57. Rh8+ {[%emt 0:0:0]} Kc7 {[%emt 0:0:23]} 58. Rh7+ {[%emt 0:0:0]} Bd7 {[%emt 0:0:40]} 59. Qxd4 {[%emt 0:0:0]} Qxg3+ {[%emt 0:0:13]} 0-1

[Event "57th Biel Festival MTO 2024"]
[White "Vemparala,Nikash"]
[Black "Hartmann,Wolfgang"]
[Site "Biel"]
[Round "2.55"]
[Annotator "RC"]
[Result "1-0"]
[Date "2024.07.16"]
[WhiteElo "2170"]
[BlackElo "1983"]
[PlyCount "63"]
[TimeControl "60"]

1. e4 {[%emt 0:0:5]} c5 {[%emt 0:0:16]} 2. Nf3 {[%emt 0:0:3]} Nc6 {[%emt 0:0:14]} 3. Bb5 {[%emt 0:0:9]} g6 {[%emt 0:0:21]} 4. Bxc6 {[%emt 0:0:5]} dxc6 {[%emt 0:0:6]} 5. d3 {[%emt 0:0:12]} Bg7 {[%emt 0:0:22]} 6. h3 {[%emt 0:0:14]} Nf6 {[%emt 0:1:31]} 7. O-O {[%emt 0:0:26]} Nd7 {[%emt 0:0:24]} 8. Nc3 {[%emt 0:0:52]} e5 {[%emt 0:0:14]} 9. Be3 {[%emt 0:15:51]} b6 {[%emt 0:0:36]} 10. Qd2 {[%emt 0:0:31]} h6 {[%emt 0:0:14]} 11. Nh2 {[%emt 0:0:52]} Nf8 {[%emt 0:0:18]} 12. f4 {[%emt 0:0:50]} exf4 {[%emt 0:0:15]} 13. Bxf4 {[%emt 0:0:8]} Ne6 {[%emt 0:1:30]} 14. Be3 {[%emt 0:0:10]} Nd4 {[%emt 0:2:39]} 15. Rae1 {[%emt 0:1:10]} Be6 {[%emt 0:2:20]} 16. a3 {[%emt 0:1:34]} Qe7 {[%emt 0:3:55]} 17. Nf3 {[%emt 0:2:28]} O-O-O {[%emt 0:5:58]} 18. Ne2 {[%emt 0:14:48]} g5 {[%emt 0:30:24]} 19. Ng3 {[%emt 0:7:35]} Qc7 {[%emt 0:6:31]} 20. Bxd4 {[%emt 0:16:55]} Bxd4+ {[%emt 0:11:28]} 21. Nxd4 {[%emt 0:0:31]} cxd4 {[%emt 0:0:21]} 22. Nf5 {[%emt 0:0:39]} Qd7 {[%emt 0:27:42]} 23. Ng7 {[%emt 0:1:28]} Rhf8 {[%emt 0:3:20]} 24. Qf2 {[%emt 0:1:3]} f6 {[%emt 0:1:43]} 25. Nxe6 {[%emt 0:0:10]} Qxe6 {[%emt 0:0:7]} 26. Qf3 {[%emt 0:0:35]} Rd7 {[%emt 0:2:12]} 27. Qh5 {[%emt 0:0:37]} Rh8 {[%emt 0:1:35]} 28. Rf5 {[%emt 0:0:44]} Rf7 {[%emt 0:4:53]} 29. Ref1 {[%emt 0:0:13]} Rff8 {[%emt 0:1:53]} 30. Qg6 {[%emt 0:1:50]} Rhg8 {[%emt 0:0:17]} 31. Qxh6 {[%emt 0:0:48]} Rh8 {[%emt 0:0:10]} 32. Qg7 {[%emt 0:0:7]} 1-0

[Event "57th Biel Festival MTO 2024"]
[White "Coles,Ruben"]
[Black "Tkhoruk,Roman"]
[Site "Biel"]
[Round "2.56"]
[Annotator "RC"]
[Result "1/2-1/2"]
[Date "2024.07.16"]
[WhiteElo "2141"]
[BlackElo "1944"]
[PlyCount "72"]
[TimeControl "60"]

1. e4 {[%emt 0:0:5]} c6 {[%emt 0:0:15]} 2. d4 {[%emt 0:0:4]} d5 {[%emt 0:0:12]} 3. e5 {[%emt 0:0:5]} Bf5 {[%emt 0:0:15]} 4. h4 {[%emt 0:0:7]} h5 {[%emt 0:0:9]} 5. Bd3 {[%emt 0:0:4]} Bxd3 {[%emt 0:0:11]} 6. Qxd3 {[%emt 0:0:6]} e6 {[%emt 0:0:11]} 7. Nf3 {[%emt 0:0:5]} c5 {[%emt 0:0:17]} 8. dxc5 {[%emt 0:0:14]} Nc6 {[%emt 0:13:41]} 9. O-O {[%emt 0:6:0]} Bxc5 {[%emt 0:2:0]} 10. c4 {[%emt 0:0:34]} Nge7 {[%emt 0:4:13]} 11. Nc3 {[%emt 0:1:41]} Qd7 {[%emt 0:35:14]} 12. Rd1 {[%emt 0:6:24]} Rd8 {[%emt 0:5:7]} 13. Bg5 {[%emt 0:11:46]} O-O {[%emt 0:5:46]} 14. cxd5 {[%emt 0:7:52]} exd5 {[%emt 0:0:39]} 15. Bxe7 {[%emt 0:1:34]} Nxe7 {[%emt 0:0:22]} 16. Ng5 {[%emt 0:0:45]} Qf5 {[%emt 0:1:26]} 17. Qxf5 {[%emt 0:0:37]} Nxf5 {[%emt 0:0:13]} 18. Nxd5 {[%emt 0:0:47]} Nxh4 {[%emt 0:4:36]} 19. Rac1 {[%emt 0:15:37]} Bb6 {[%emt 0:3:18]} 20. Ne7+ {[%emt 0:3:5]} Kh8 {[%emt 0:0:22]} 21. g3 {[%emt 0:1:57]} Rde8 {[%emt 0:2:48]} 22. Rd7 {[%emt 0:13:32]} Ng6 {[%emt 0:5:17]} 23. Nxf7+ {[%emt 0:17:29]} Rxf7 {[%emt 0:0:18]} 24. Nxg6+ {[%emt 0:0:6]} Kg8 {[%emt 0:0:7]} 25. Rd6 {[%emt 0:2:48]} Bxf2+ {[%emt 0:1:23]} 26. Kg2 {[%emt 0:0:7]} Bb6 {[%emt 0:1:21]} 27. Rc2 {[%emt 0:1:57]} Bc7 {[%emt 0:3:25]} 28. Rd5 {[%emt 0:1:23]} Kh7 {[%emt 0:2:30]} 29. Nf4 {[%emt 0:4:5]} Bxe5 {[%emt 0:1:44]} 30. Nd3 {[%emt 0:3:0]} Bb8 {[%emt 0:1:26]} 31. Rxh5+ {[%emt 0:0:43]} Kg6 {[%emt 0:0:30]} 32. Rcc5 {[%emt 0:6:58]} Re3 {[%emt 0:1:14]} 33. Rhg5+ {[%emt 0:0:45]} Kh6 {[%emt 0:0:55]} 34. Rh5+ {[%emt 0:0:15]} Kg6 {[%emt 0:0:10]} 35. Rhg5+ {[%emt 0:2:19]} Kh6 {[%emt 0:0:15]} 36. Rh5+ {[%emt 0:2:50]} Kg6 {[%emt 0:0:12]} 1/2-1/2

[Event "57th Biel Festival MTO 2024"]
[White "Woong,Zhi Wei William"]
[Black "Udelnov,Valentin"]
[Site "Biel"]
[Round "2.57"]
[Annotator "RC"]
[Result "1-0"]
[Date "2024.07.16"]
[WhiteElo "2139"]
[BlackElo "1965"]
[PlyCount "57"]
[TimeControl "60"]

1. e4 {[%emt 0:0:6]} e5 {[%emt 0:0:7]} 2. Nf3 {[%emt 0:0:10]} Nc6 {[%emt 0:0:5]} 3. Bb5 {[%emt 0:0:4]} g6 {[%emt 0:0:6]} 4. c3 {[%emt 0:0:4]} a6 {[%emt 0:0:18]} 5. Ba4 {[%emt 0:0:18]} Bg7 {[%emt 0:0:9]} 6. d4 {[%emt 0:0:19]} exd4 {[%emt 0:0:5]} 7. cxd4 {[%emt 0:0:8]} b5 {[%emt 0:0:16]} 8. Bb3 {[%emt 0:0:16]} Nge7 {[%emt 0:0:27]} 9. O-O {[%emt 0:1:42]} d6 {[%emt 0:2:59]} 10. Nc3 {[%emt 0:2:21]} O-O {[%emt 0:1:26]} 11. h3 {[%emt 0:6:21]} Na5 {[%emt 0:5:6]} 12. Bc2 {[%emt 0:2:43]} c5 {[%emt 0:3:0]} 13. Bg5 {[%emt 0:10:39]} h6 {[%emt 0:8:23]} 14. Bh4 {[%emt 0:1:41]} g5 {[%emt 0:9:33]} 15. Bg3 {[%emt 0:1:11]} Nc4 {[%emt 0:10:45]} 16. b3 {[%emt 0:1:27]} Na3 {[%emt 0:0:47]} 17. Bd3 {[%emt 0:1:0]} g4 {[%emt 0:0:54]} 18. Nh4 {[%emt 0:25:25]} gxh3 {[%emt 0:4:36]} 19. Qh5 {[%emt 0:7:3]} hxg2 {[%emt 0:4:43]} 20. Kxg2 {[%emt 0:3:49]} c4 {[%emt 0:7:14]} 21. bxc4 {[%emt 0:3:18]} bxc4 {[%emt 0:0:3]} 22. Be2 {[%emt 0:0:51]} Bxd4 {[%emt 0:4:3]} 23. Rac1 {[%emt 0:21:49]} Qd7 {[%emt 0:18:41]} 24. Rh1 {[%emt 0:4:30]} Bg7 {[%emt 0:1:25]} 25. Rcd1 {[%emt 0:2:55]} Bxc3 {[%emt 0:15:4]} 26. Rxd6 {[%emt 0:1:9]} Qb5 {[%emt 0:0:27]} 27. Qxh6 {[%emt 0:1:0]} Bg7 {[%emt 0:0:57]} 28. Qh7+ {[%emt 0:0:34]} Kxh7 {[%emt 0:0:19]} 29. Nf5+ {[%emt 0:0:5]} 1-0

[Event "57th Biel Festival MTO 2024"]
[White "Pouly,Ivan"]
[Black "Nurgaliyeva,Zarina"]
[Site "Biel"]
[Round "2.58"]
[Annotator "RC"]
[Result "1-0"]
[Date "2024.07.16"]
[WhiteElo "1958"]
[BlackElo "2145"]
[PlyCount "71"]
[TimeControl "60"]

1. c4 {[%emt 0:0:3]} e5 {[%emt 0:30:37]} 2. Nc3 {[%emt 0:28:23]} Bb4 {[%emt 0:0:30]} 3. g3 {[%emt 0:0:30]} Bxc3 {[%emt 0:0:30]} 4. dxc3 {[%emt 0:0:30]} Nc6 {[%emt 0:0:30]} 5. Bg2 {[%emt 0:0:30]} d6 {[%emt 0:0:30]} 6. Nf3 {[%emt 0:0:30]} Nge7 {[%emt 0:0:30]} 7. O-O {[%emt 0:0:30]} O-O {[%emt 0:0:30]} 8. e4 {[%emt 0:0:30]} h6 {[%emt 0:0:30]} 9. Ne1 {[%emt 0:0:30]} f5 {[%emt 0:0:30]} 10. exf5 {[%emt 0:0:30]} Bxf5 {[%emt 0:0:30]} 11. Nc2 {[%emt 0:41:20]} Qd7 {[%emt 0:31:24]} 12. Re1 {[%emt 0:0:30]} Bg4 {[%emt 0:0:30]} 13. Qd3 {[%emt 0:0:30]} Rf7 {[%emt 0:0:30]} 14. f4 {[%emt 0:0:30]} Raf8 {[%emt 0:0:30]} 15. b4 {[%emt 0:0:30]} Bh3 {[%emt 0:0:30]} 16. b5 {[%emt 0:0:30]} Bxg2 {[%emt 0:0:30]} 17. Kxg2 {[%emt 0:0:30]} Nb8 {[%emt 0:0:30]} 18. Re2 {[%emt 0:0:30]} Qc8 {[%emt 0:0:30]} 19. fxe5 {[%emt 0:0:30]} dxe5 {[%emt 0:0:30]} 20. Be3 {[%emt 0:0:30]} Qg4 {[%emt 0:0:30]} 21. Bxa7 {[%emt 0:0:30]} Ng6 {[%emt 0:0:30]} 22. Kh1 {[%emt 0:0:30]} b6 {[%emt 0:0:30]} 23. Ne3 {[%emt 0:0:30]} Qf3+ {[%emt 0:4:40]} 24. Kg1 {[%emt 0:0:8]} Nd7 {[%emt 0:8:19]} 25. Rf1 {[%emt 0:2:22]} Qh5 {[%emt 0:1:2]} 26. Ree1 {[%emt 0:7:17]} Nc5 {[%emt 0:2:43]} 27. Qd5 {[%emt 0:0:34]} Ne7 {[%emt 0:7:39]} 28. Qg2 {[%emt 0:1:13]} e4 {[%emt 0:0:30]} 29. Rxf7 {[%emt 0:1:1]} Qxf7 {[%emt 0:1:35]} 30. Rf1 {[%emt 0:0:20]} Qe8 {[%emt 0:0:32]} 31. Rxf8+ {[%emt 0:6:47]} Qxf8 {[%emt 0:0:1]} 32. Qd2 {[%emt 0:0:23]} Nd3 {[%emt 0:2:43]} 33. c5 {[%emt 0:0:29]} bxc5 {[%emt 0:6:22]} 34. a4 {[%emt 0:2:1]} Qa8 {[%emt 0:8:5]} 35. b6 {[%emt 0:0:34]} cxb6 {[%emt 0:0:19]} 36. Qa2+ {[%emt 0:0:10]} 1-0